[Event "Titled Tuesday Blitz February 15 Late 2022"]
[White "Tari, Aryan"]
[Black "Wieczorek, Oskar"]
[WhiteFideId "1510045"]
[BlackFideId "1133950"]
[WhiteElo "2567"]
[BlackElo "2319"]
[Result "1-0"]
[Round "02"]
[TimeControl "180+1"]
[Date "2022.02.15"]
[WhiteClock "0:00:25"]
[BlackClock "0:00:20"]

1. d4 {[%clk 0:03:00]}  Nf6 {[%clk 0:03:00]} 2. c4 {[%clk 0:02:55]}  c5 {[%clk 0:03:00]} 3. Nf3 {[%clk 0:02:54]}  cxd4 {[%clk 0:03:00]} 4. Nxd4 {[%clk 0:02:55]}  Nc6 {[%clk 0:03:01]} 5. Nc3 {[%clk 0:02:54]}  d6 {[%clk 0:03:01]} 6. e4 {[%clk 0:02:52]}  g6 {[%clk 0:02:54]} 7. Be2 {[%clk 0:02:51]}  Nxd4 {[%clk 0:02:52]} 8. Qxd4 {[%clk 0:02:51]}  Bg7 {[%clk 0:02:53]} 9. Be3 {[%clk 0:02:51]}  O-O {[%clk 0:02:54]} 10. Qd2 {[%clk 0:02:52]}  a5 {[%clk 0:02:53]} 11. O-O {[%clk 0:02:50]}  a4 {[%clk 0:02:53]} 12. Bd4 {[%clk 0:02:46]}  Qa5 {[%clk 0:02:51]} 13. Rad1 {[%clk 0:02:47]}  Bd7 {[%clk 0:02:51]} 14. Qe3 {[%clk 0:02:24]}  Bc6 {[%clk 0:02:31]} 15. f4 {[%clk 0:02:02]}  Nd7 {[%clk 0:02:14]} 16. Bxg7 {[%clk 0:02:02]}  Kxg7 {[%clk 0:02:15]} 17. Kh1 {[%clk 0:02:02]}  Qc5 {[%clk 0:02:07]} 18. Qg3 {[%clk 0:02:00]}  Ra5 {[%clk 0:01:38]} 19. f5 {[%clk 0:01:26]}  Qe5 {[%clk 0:01:34]} 20. Qd3 {[%clk 0:01:20]}  Nf6 {[%clk 0:01:32]} 21. Bf3 {[%clk 0:01:20]}  b5 {[%clk 0:01:14]} 22. Rfe1 {[%clk 0:00:59]}  bxc4 {[%clk 0:01:13]} 23. Qxc4 {[%clk 0:01:00]}  Rc5 {[%clk 0:01:13]} 24. Qb4 {[%clk 0:00:59]}  a3 {[%clk 0:00:47]} 25. Qxa3 {[%clk 0:00:57]}  Rb8 {[%clk 0:00:47]} 26. Re2 {[%clk 0:00:42]}  g5 {[%clk 0:00:47]} 27. g3 {[%clk 0:00:39]}  h5 {[%clk 0:00:30]} 28. Nd5 {[%clk 0:00:30]}  g4 {[%clk 0:00:30]} 29. Nxf6 {[%clk 0:00:27]}  exf6 {[%clk 0:00:20]} 30. Bg2 {[%clk 0:00:28]}  d5 {[%clk 0:00:20]} 31. Qxc5 {[%clk 0:00:25]} 1-0


[Site "https://www.chess.com"]

[Event "Titled Tuesday Blitz February 15 Late 2022"]
[White "Tasev, Dejan"]
[Black "Haszon, David"]
[WhiteFideId "936618"]
[BlackFideId "733610"]
[WhiteElo "2253"]
[BlackElo "2201"]
[Result "0-1"]
[Round "02"]
[TimeControl "180+1"]
[Date "2022.02.16"]
[WhiteClock "0:00:39"]
[BlackClock "0:01:19"]

1. e4 {[%clk 0:02:59]}  c5 {[%clk 0:02:54]} 2. Nf3 {[%clk 0:02:59]}  d6 {[%clk 0:02:55]} 3. Nc3 {[%clk 0:02:58]}  Nf6 {[%clk 0:02:55]} 4. d4 {[%clk 0:02:58]}  cxd4 {[%clk 0:02:56]} 5. Nxd4 {[%clk 0:02:59]}  a6 {[%clk 0:02:56]} 6. Bc4 {[%clk 0:02:58]}  e6 {[%clk 0:02:56]} 7. Bb3 {[%clk 0:02:58]}  Be7 {[%clk 0:02:57]} 8. f3 {[%clk 0:02:58]}  O-O {[%clk 0:02:57]} 9. Be3 {[%clk 0:02:58]}  b5 {[%clk 0:02:54]} 10. a3 {[%clk 0:02:58]}  Qc7 {[%clk 0:02:46]} 11. Qd2 {[%clk 0:02:57]}  Nc6 {[%clk 0:02:44]} 12. g4 {[%clk 0:02:53]}  Na5 {[%clk 0:02:36]} 13. g5 {[%clk 0:02:47]}  Nxb3 {[%clk 0:02:33]} 14. cxb3 {[%clk 0:02:39]}  Nh5 {[%clk 0:02:26]} 15. b4 {[%clk 0:02:34]}  Bb7 {[%clk 0:02:26]} 16. O-O-O {[%clk 0:02:33]}  d5 {[%clk 0:02:22]} 17. exd5 {[%clk 0:02:26]}  Bxd5 {[%clk 0:02:23]} 18. Kb1 {[%clk 0:02:22]}  Rfd8 {[%clk 0:02:17]} 19. Qf2 {[%clk 0:02:06]}  Qb7 {[%clk 0:02:02]} 20. Rhf1 {[%clk 0:01:56]}  a5 {[%clk 0:01:56]} 21. Qh4 {[%clk 0:01:33]}  g6 {[%clk 0:01:49]} 22. Nxd5 {[%clk 0:01:21]}  Rxd5 {[%clk 0:01:46]} 23. Nc2 {[%clk 0:01:21]}  axb4 {[%clk 0:01:43]} 24. Nxb4 {[%clk 0:01:18]}  Rxd1+ {[%clk 0:01:43]} 25. Rxd1 {[%clk 0:01:17]}  Qxf3 {[%clk 0:01:44]} 26. Re1 {[%clk 0:01:10]}  Qf5+ {[%clk 0:01:43]} 27. Ka1 {[%clk 0:01:03]}  Bf8 {[%clk 0:01:35]} 28. Qd4 {[%clk 0:00:45]}  Bg7 {[%clk 0:01:30]} 29. Qd2 {[%clk 0:00:42]}  Rxa3+ {[%clk 0:01:30]} 30. Na2 {[%clk 0:00:40]}  Ra8 {[%clk 0:01:21]} 31. Bd4 {[%clk 0:00:39]}  Qd5 {[%clk 0:01:19]} 0-1


[Site "https://www.chess.com"]

[Event "Titled Tuesday Blitz February 15 Late 2022"]
[White "Terletsky, Oleg"]
[Black "Al-Tarboush, Ward"]
[WhiteFideId "14116774"]
[BlackFideId "7601450"]
[WhiteElo "2050"]
[BlackElo "2276"]
[Result "0-1"]
[Round "02"]
[TimeControl "180+1"]
[Date "2022.02.16"]
[WhiteClock "0:00:02"]
[BlackClock "0:01:25"]

1. e4 {[%clk 0:03:00]}  e6 {[%clk 0:02:59]} 2. d4 {[%clk 0:03:00]}  d5 {[%clk 0:02:59]} 3. Nd2 {[%clk 0:03:00]}  c5 {[%clk 0:02:59]} 4. Ngf3 {[%clk 0:02:59]}  cxd4 {[%clk 0:02:57]} 5. exd5 {[%clk 0:02:56]}  Qxd5 {[%clk 0:02:58]} 6. Bc4 {[%clk 0:02:56]}  Qd6 {[%clk 0:02:58]} 7. O-O {[%clk 0:02:55]}  Nf6 {[%clk 0:02:58]} 8. Nb3 {[%clk 0:02:55]}  Nc6 {[%clk 0:02:59]} 9. Nbxd4 {[%clk 0:02:55]}  Nxd4 {[%clk 0:03:00]} 10. Nxd4 {[%clk 0:02:55]}  Be7 {[%clk 0:03:01]} 11. c3 {[%clk 0:02:24]}  O-O {[%clk 0:02:59]} 12. Qf3 {[%clk 0:02:21]}  Qc7 {[%clk 0:02:57]} 13. Bd3 {[%clk 0:02:19]}  a6 {[%clk 0:02:57]} 14. Bf4 {[%clk 0:02:13]}  e5 {[%clk 0:02:56]} 15. Bg3 {[%clk 0:02:12]}  Bg4 {[%clk 0:02:56]} 16. Qe3 {[%clk 0:01:47]}  exd4 {[%clk 0:02:56]} 17. Qxd4 {[%clk 0:01:48]}  Qa5 {[%clk 0:02:51]} 18. Rae1 {[%clk 0:01:44]}  Bc5 {[%clk 0:02:48]} 19. Qf4 {[%clk 0:01:40]}  Qxa2 {[%clk 0:02:44]} 20. Bh4 {[%clk 0:01:36]}  Bh5 {[%clk 0:02:13]} 21. Bxf6 {[%clk 0:01:35]}  gxf6 {[%clk 0:02:14]} 22. Qxf6 {[%clk 0:01:18]}  Bg6 {[%clk 0:01:59]} 23. Be4 {[%clk 0:00:51]}  Rae8 {[%clk 0:01:45]} 24. Bxb7 {[%clk 0:00:41]}  Qxb2 {[%clk 0:01:34]} 25. Rxe8 {[%clk 0:00:13]}  Rxe8 {[%clk 0:01:35]} 26. Bd5 {[%clk 0:00:10]}  Qb6 {[%clk 0:01:33]} 27. Qf3 {[%clk 0:00:06]}  Kg7 {[%clk 0:01:28]} 28. h4 {[%clk 0:00:06]}  Qf6 {[%clk 0:01:27]} 29. Qg4 {[%clk 0:00:03]}  h5 {[%clk 0:01:27]} 30. Qg3 {[%clk 0:00:03]}  Bd6 {[%clk 0:01:27]} 31. Qh3 {[%clk 0:00:02]}  Qf5 {[%clk 0:01:25]} 0-1


[Site "https://www.chess.com"]

[Event "Titled Tuesday Blitz February 15 Late 2022"]
[White "Tomiello, Mateus Costamilan"]
[Black "Kollars, Dmitrij"]
[WhiteFideId "22701958"]
[BlackFideId "12909572"]
[WhiteElo "1975"]
[BlackElo "2584"]
[Result "0-1"]
[Round "02"]
[TimeControl "180+1"]
[Date "2022.02.16"]
[WhiteClock "0:00:07"]
[BlackClock "0:01:35"]

1. e4 {[%clk 0:03:00]}  c5 {[%clk 0:02:59]} 2. Nf3 {[%clk 0:03:01]}  d6 {[%clk 0:02:59]} 3. d4 {[%clk 0:03:01]}  cxd4 {[%clk 0:03:00]} 4. Nxd4 {[%clk 0:03:02]}  Nf6 {[%clk 0:03:01]} 5. Nc3 {[%clk 0:03:03]}  Nc6 {[%clk 0:03:01]} 6. Bg5 {[%clk 0:03:02]}  e6 {[%clk 0:03:01]} 7. Qd2 {[%clk 0:02:57]}  a6 {[%clk 0:03:01]} 8. O-O-O {[%clk 0:02:57]}  Bd7 {[%clk 0:03:00]} 9. f4 {[%clk 0:02:54]}  h6 {[%clk 0:03:00]} 10. Bxf6 {[%clk 0:02:52]}  Qxf6 {[%clk 0:03:01]} 11. Nf3 {[%clk 0:02:48]}  Qd8 {[%clk 0:02:59]} 12. Bd3 {[%clk 0:02:34]}  Be7 {[%clk 0:02:59]} 13. Kb1 {[%clk 0:02:33]}  g5 {[%clk 0:02:59]} 14. f5 {[%clk 0:02:22]}  Qc7 {[%clk 0:02:58]} 15. Rhf1 {[%clk 0:02:17]}  O-O-O {[%clk 0:02:58]} 16. h3 {[%clk 0:02:11]}  Kb8 {[%clk 0:02:54]} 17. Ne2 {[%clk 0:01:56]}  Bc8 {[%clk 0:02:45]} 18. Ned4 {[%clk 0:01:54]}  Nxd4 {[%clk 0:02:41]} 19. Nxd4 {[%clk 0:01:55]}  Bf6 {[%clk 0:02:42]} 20. c3 {[%clk 0:01:52]}  Be5 {[%clk 0:02:42]} 21. fxe6 {[%clk 0:01:49]}  fxe6 {[%clk 0:02:43]} 22. Nf3 {[%clk 0:01:47]}  Bf4 {[%clk 0:02:42]} 23. Qf2 {[%clk 0:01:48]}  Rhf8 {[%clk 0:02:42]} 24. g3 {[%clk 0:01:44]}  Be5 {[%clk 0:02:42]} 25. Qg2 {[%clk 0:01:42]}  Bg7 {[%clk 0:02:42]} 26. h4 {[%clk 0:01:37]}  Qe7 {[%clk 0:02:40]} 27. hxg5 {[%clk 0:01:32]}  hxg5 {[%clk 0:02:41]} 28. Nd4 {[%clk 0:01:31]}  Be5 {[%clk 0:02:31]} 29. Nf3 {[%clk 0:01:27]}  Bh8 {[%clk 0:02:31]} 30. e5 {[%clk 0:01:20]}  g4 {[%clk 0:02:29]} 31. exd6 {[%clk 0:01:19]}  Rxd6 {[%clk 0:02:30]} 32. Nh2 {[%clk 0:01:11]}  Rxf1 {[%clk 0:02:27]} 33. Qxf1 {[%clk 0:01:11]}  e5 {[%clk 0:02:26]} 34. Be4 {[%clk 0:01:05]}  Rxd1+ {[%clk 0:02:26]} 35. Qxd1 {[%clk 0:01:05]}  Qc5 {[%clk 0:02:26]} 36. Nxg4 {[%clk 0:00:59]}  Qc4 {[%clk 0:02:25]} 37. Qf3 {[%clk 0:00:52]}  Bg7 {[%clk 0:02:17]} 38. Ne3 {[%clk 0:00:52]}  Qc5 {[%clk 0:02:15]} 39. Nf5 {[%clk 0:00:49]}  Bf8 {[%clk 0:02:14]} 40. g4 {[%clk 0:00:46]}  Qb6 {[%clk 0:02:05]} 41. Qg3 {[%clk 0:00:39]}  Ba3 {[%clk 0:01:57]} 42. Qxe5+ {[%clk 0:00:31]}  Ka8 {[%clk 0:01:57]} 43. Qh2 {[%clk 0:00:30]}  Qb5 {[%clk 0:01:49]} 44. Qd2 {[%clk 0:00:17]}  Bc5 {[%clk 0:01:44]} 45. Ne3 {[%clk 0:00:11]}  Qe8 {[%clk 0:01:43]} 46. Qd3 {[%clk 0:00:10]}  Ka7 {[%clk 0:01:42]} 47. Nd5 {[%clk 0:00:09]}  Qe5 {[%clk 0:01:42]} 48. b4 {[%clk 0:00:10]}  Bg1 {[%clk 0:01:41]} 49. Kc2 {[%clk 0:00:09]}  Bxg4 {[%clk 0:01:40]} 50. Qc4 {[%clk 0:00:08]}  Qh2+ {[%clk 0:01:39]} 51. Kb3 {[%clk 0:00:08]}  Bd1+ {[%clk 0:01:35]} 52. Ka3 {[%clk 0:00:07]}  Qd2 {[%clk 0:01:35]} 53. Nc7 {[%clk 0:00:07]}  Qc1# {[%clk 0:01:35]} 0-1


[Site "https://www.chess.com"]

[Event "Titled Tuesday Blitz February 15 Late 2022"]
[White "Toncheva, Nadya"]
[Black "Ramirez, Alejandro"]
[WhiteFideId "2924056"]
[BlackFideId "6500617"]
[WhiteElo "1920"]
[BlackElo "2694"]
[Result "0-1"]
[Round "02"]
[TimeControl "180+1"]
[Date "2022.02.16"]
[WhiteClock "0:00:04"]
[BlackClock "0:01:08"]

1. e4 {[%clk 0:02:58]}  c5 {[%clk 0:03:00]} 2. Nf3 {[%clk 0:02:58]}  e6 {[%clk 0:02:57]} 3. d4 {[%clk 0:02:59]}  cxd4 {[%clk 0:02:58]} 4. Nxd4 {[%clk 0:03:00]}  Nc6 {[%clk 0:02:59]} 5. Nc3 {[%clk 0:03:00]}  Qc7 {[%clk 0:03:00]} 6. f4 {[%clk 0:03:00]}  a6 {[%clk 0:02:59]} 7. Nxc6 {[%clk 0:03:00]}  bxc6 {[%clk 0:02:58]} 8. Bd3 {[%clk 0:03:00]}  d5 {[%clk 0:02:58]} 9. O-O {[%clk 0:03:00]}  Nf6 {[%clk 0:02:58]} 10. Qf3 {[%clk 0:02:59]}  Be7 {[%clk 0:02:58]} 11. Bd2 {[%clk 0:02:54]}  O-O {[%clk 0:02:55]} 12. Rae1 {[%clk 0:02:52]}  Bb7 {[%clk 0:02:52]} 13. Qh3 {[%clk 0:02:50]}  g6 {[%clk 0:02:35]} 14. b3 {[%clk 0:02:36]}  c5 {[%clk 0:02:33]} 15. e5 {[%clk 0:01:43]}  Nd7 {[%clk 0:02:27]} 16. Rf3 {[%clk 0:01:37]}  c4 {[%clk 0:02:22]} 17. bxc4 {[%clk 0:01:21]}  dxc4 {[%clk 0:02:23]} 18. Be4 {[%clk 0:01:21]}  Rfd8 {[%clk 0:02:23]} 19. Rg3 {[%clk 0:01:13]}  Nf8 {[%clk 0:01:56]} 20. Be3 {[%clk 0:00:59]}  Bb4 {[%clk 0:01:51]} 21. Bxb7 {[%clk 0:00:37]}  Bxc3 {[%clk 0:01:39]} 22. Rf1 {[%clk 0:00:14]}  Qxb7 {[%clk 0:01:37]} 23. f5 {[%clk 0:00:15]}  exf5 {[%clk 0:01:31]} 24. Qxf5 {[%clk 0:00:10]}  Bd4 {[%clk 0:01:18]} 25. Bxd4 {[%clk 0:00:08]}  Rxd4 {[%clk 0:01:19]} 26. Qf6 {[%clk 0:00:04]}  Re8 {[%clk 0:01:12]} 27. e6 {[%clk 0:00:04]}  Nxe6 {[%clk 0:01:12]} 28. h4 {[%clk 0:00:05]}  Qa7 {[%clk 0:01:07]} 29. Kh1 {[%clk 0:00:04]}  Qe7 {[%clk 0:01:08]} 0-1


[Site "https://www.chess.com"]

[Event "Titled Tuesday Blitz February 15 Late 2022"]
[White "Vusatiuk, Vladimir"]
[Black "De Arruda, Leandro Formes"]
[WhiteFideId "14118610"]
[BlackFideId "22722009"]
[WhiteElo "2157"]
[BlackElo "1780"]
[Result "1-0"]
[Round "02"]
[TimeControl "180+1"]
[Date "2022.02.16"]
[WhiteClock "0:00:08"]
[BlackClock "0:00:06"]

1. Nf3 {[%clk 0:03:00]}  g6 {[%clk 0:02:55]} 2. h4 {[%clk 0:03:01]}  Bg7 {[%clk 0:02:54]} 3. h5 {[%clk 0:03:01]}  d6 {[%clk 0:02:52]} 4. d4 {[%clk 0:03:02]}  Nd7 {[%clk 0:02:48]} 5. h6 {[%clk 0:02:59]}  Bf6 {[%clk 0:02:46]} 6. g4 {[%clk 0:02:52]}  e6 {[%clk 0:02:41]} 7. e4 {[%clk 0:02:45]}  b6 {[%clk 0:02:37]} 8. Bd3 {[%clk 0:02:33]}  Bb7 {[%clk 0:02:35]} 9. a4 {[%clk 0:02:26]}  c5 {[%clk 0:02:32]} 10. c3 {[%clk 0:02:25]}  cxd4 {[%clk 0:02:28]} 11. cxd4 {[%clk 0:02:26]}  Be7 {[%clk 0:02:20]} 12. a5 {[%clk 0:02:24]}  bxa5 {[%clk 0:02:15]} 13. g5 {[%clk 0:02:20]}  d5 {[%clk 0:02:12]} 14. Nc3 {[%clk 0:02:05]}  Bb4 {[%clk 0:02:07]} 15. Bb5 {[%clk 0:01:45]}  dxe4 {[%clk 0:02:00]} 16. Ne5 {[%clk 0:01:42]}  Bc8 {[%clk 0:01:50]} 17. Qe2 {[%clk 0:01:13]}  Ne7 {[%clk 0:01:45]} 18. Qxe4 {[%clk 0:01:03]}  Nd5 {[%clk 0:01:44]} 19. Bd2 {[%clk 0:00:38]}  O-O {[%clk 0:01:38]} 20. Nxd5 {[%clk 0:00:32]}  Bxd2+ {[%clk 0:01:32]} 21. Kxd2 {[%clk 0:00:33]}  exd5 {[%clk 0:01:29]} 22. Qf4 {[%clk 0:00:19]}  Nxe5 {[%clk 0:01:00]} 23. dxe5 {[%clk 0:00:20]}  Bf5 {[%clk 0:00:54]} 24. Qd4 {[%clk 0:00:14]}  Qb6 {[%clk 0:00:47]} 25. Qxb6 {[%clk 0:00:11]}  axb6 {[%clk 0:00:48]} 26. Rhc1 {[%clk 0:00:08]}  Rac8 {[%clk 0:00:46]} 27. Ke3 {[%clk 0:00:08]}  Be6 {[%clk 0:00:39]} 28. Kd4 {[%clk 0:00:08]}  Rfd8 {[%clk 0:00:36]} 29. f4 {[%clk 0:00:08]}  Kf8 {[%clk 0:00:36]} 30. Rc6 {[%clk 0:00:05]}  Rxc6 {[%clk 0:00:33]} 31. Bxc6 {[%clk 0:00:06]}  Ke7 {[%clk 0:00:34]} 32. Rc1 {[%clk 0:00:06]}  Rc8 {[%clk 0:00:33]} 33. Rc3 {[%clk 0:00:05]}  Rd8 {[%clk 0:00:32]} 34. b3 {[%clk 0:00:04]}  Rb8 {[%clk 0:00:26]} 35. Bb5 {[%clk 0:00:03]}  Rb7 {[%clk 0:00:24]} 36. Rc6 {[%clk 0:00:02]}  Kd8 {[%clk 0:00:14]} 37. Rd6+ {[%clk 0:00:01]}  Ke7 {[%clk 0:00:14]} 38. Bc6 {[%clk 0:00:02]}  Rc7 {[%clk 0:00:14]} 39. Bxd5 {[%clk 0:00:02]}  Bxd5 {[%clk 0:00:14]} 40. Kxd5 {[%clk 0:00:03]}  Rc1 {[%clk 0:00:13]} 41. Rxb6 {[%clk 0:00:03]}  Rd1+ {[%clk 0:00:14]} 42. Ke4 {[%clk 0:00:04]}  Rb1 {[%clk 0:00:13]} 43. Rb7+ {[%clk 0:00:04]}  Ke6 {[%clk 0:00:13]} 44. Rb6+ {[%clk 0:00:04]}  Ke7 {[%clk 0:00:13]} 45. f5 {[%clk 0:00:04]}  Re1+ {[%clk 0:00:12]} 46. Kd5 {[%clk 0:00:04]}  gxf5 {[%clk 0:00:11]} 47. Rb7+ {[%clk 0:00:04]}  Ke8 {[%clk 0:00:11]} 48. Rb8+ {[%clk 0:00:03]}  Ke7 {[%clk 0:00:11]} 49. Rb7+ {[%clk 0:00:04]}  Ke8 {[%clk 0:00:10]} 50. Ra7 {[%clk 0:00:05]}  Rd1+ {[%clk 0:00:09]} 51. Kc6 {[%clk 0:00:05]}  Rb1 {[%clk 0:00:06]} 52. e6 {[%clk 0:00:03]}  Rc1+ {[%clk 0:00:04]} 53. Kd6 {[%clk 0:00:04]}  Rd1+ {[%clk 0:00:04]} 54. Ke5 {[%clk 0:00:03]}  Re1+ {[%clk 0:00:04]} 55. Kxf5 {[%clk 0:00:04]}  Rxe6 {[%clk 0:00:05]} 56. Ra8+ {[%clk 0:00:03]}  Ke7 {[%clk 0:00:05]} 57. Ra7+ {[%clk 0:00:04]}  Ke8 {[%clk 0:00:05]} 58. Rxa5 {[%clk 0:00:05]}  Rb6 {[%clk 0:00:05]} 59. Re5+ {[%clk 0:00:05]}  Kf8 {[%clk 0:00:05]} 60. Re3 {[%clk 0:00:05]}  Rc6 {[%clk 0:00:03]} 61. Rg3 {[%clk 0:00:03]}  Rb6 {[%clk 0:00:03]} 62. Ke5 {[%clk 0:00:04]}  Ke7 {[%clk 0:00:03]} 63. Kd5 {[%clk 0:00:04]}  Rb5+ {[%clk 0:00:03]} 64. Kc6 {[%clk 0:00:04]}  Rb8 {[%clk 0:00:03]} 65. Kc5 {[%clk 0:00:04]}  Ke6 {[%clk 0:00:04]} 66. b4 {[%clk 0:00:05]}  Kf5 {[%clk 0:00:04]} 67. b5 {[%clk 0:00:05]}  Rb7 {[%clk 0:00:04]} 68. Kc6 {[%clk 0:00:05]}  Rb8 {[%clk 0:00:05]} 69. b6 {[%clk 0:00:06]}  Re8 {[%clk 0:00:05]} 70. b7 {[%clk 0:00:06]}  Re6+ {[%clk 0:00:06]} 71. Kc7 {[%clk 0:00:06]}  Re7+ {[%clk 0:00:07]} 72. Kc8 {[%clk 0:00:07]}  Rxb7 {[%clk 0:00:06]} 73. Kxb7 {[%clk 0:00:07]}  Kg6 {[%clk 0:00:05]} 74. Kc6 {[%clk 0:00:07]}  Kf5 {[%clk 0:00:05]} 75. Kd5 {[%clk 0:00:08]}  Kf4 {[%clk 0:00:06]} 76. Rg1 {[%clk 0:00:08]}  Kf5 {[%clk 0:00:07]} 77. Kd4 {[%clk 0:00:08]}  Kg6 {[%clk 0:00:07]} 78. Ke5 {[%clk 0:00:08]}  Kh5 {[%clk 0:00:07]} 79. Kf5 {[%clk 0:00:08]}  Kh4 {[%clk 0:00:06]} 80. Kf6 {[%clk 0:00:08]} 1-0


[Site "https://www.chess.com"]

[Event "Titled Tuesday Blitz February 15 Late 2022"]
[White "Wagner, Dennis"]
[Black "Loay, Sameer"]
[WhiteFideId "24650684"]
[BlackFideId "8104239"]
[WhiteElo "2355"]
[BlackElo "2040"]
[Result "1-0"]
[Round "02"]
[TimeControl "180+1"]
[Date "2022.02.16"]
[WhiteClock "0:00:13"]
[BlackClock "0:00:16"]

1. c4 {[%clk 0:03:00]}  Nf6 {[%clk 0:02:58]} 2. Nf3 {[%clk 0:03:00]}  g6 {[%clk 0:02:58]} 3. Nc3 {[%clk 0:02:59]}  Bg7 {[%clk 0:02:59]} 4. d4 {[%clk 0:02:59]}  O-O {[%clk 0:02:59]} 5. e4 {[%clk 0:02:59]}  d6 {[%clk 0:03:00]} 6. Be2 {[%clk 0:02:59]}  Na6 {[%clk 0:03:01]} 7. O-O {[%clk 0:02:59]}  e5 {[%clk 0:03:00]} 8. Be3 {[%clk 0:02:59]}  Ng4 {[%clk 0:03:00]} 9. Bg5 {[%clk 0:02:59]}  Qe8 {[%clk 0:03:00]} 10. h3 {[%clk 0:02:58]}  f6 {[%clk 0:03:00]} 11. Bh4 {[%clk 0:02:41]}  Nh6 {[%clk 0:03:00]} 12. c5 {[%clk 0:02:36]}  Nb8 {[%clk 0:02:48]} 13. Nb5 {[%clk 0:02:27]}  Qe7 {[%clk 0:02:37]} 14. cxd6 {[%clk 0:02:14]}  cxd6 {[%clk 0:02:38]} 15. Bc4+ {[%clk 0:01:57]}  Kh8 {[%clk 0:02:37]} 16. Rc1 {[%clk 0:01:48]}  Nc6 {[%clk 0:02:31]} 17. Re1 {[%clk 0:01:45]}  a6 {[%clk 0:02:20]} 18. Nc3 {[%clk 0:01:45]}  b5 {[%clk 0:02:20]} 19. Nd5 {[%clk 0:01:37]}  Qd8 {[%clk 0:02:09]} 20. Bb3 {[%clk 0:01:26]}  Bb7 {[%clk 0:02:07]} 21. Qd2 {[%clk 0:01:09]}  Ng8 {[%clk 0:02:00]} 22. Red1 {[%clk 0:01:00]}  Bh6 {[%clk 0:01:30]} 23. Ne3 {[%clk 0:00:58]}  Qe8 {[%clk 0:01:22]} 24. d5 {[%clk 0:00:50]}  Nd8 {[%clk 0:01:00]} 25. Rc7 {[%clk 0:00:50]}  Rf7 {[%clk 0:00:54]} 26. Qc2 {[%clk 0:00:41]}  a5 {[%clk 0:00:46]} 27. a4 {[%clk 0:00:36]}  Bxe3 {[%clk 0:00:44]} 28. fxe3 {[%clk 0:00:36]}  b4 {[%clk 0:00:44]} 29. Nd2 {[%clk 0:00:31]}  Ba6 {[%clk 0:00:43]} 30. Kh2 {[%clk 0:00:26]}  g5 {[%clk 0:00:42]} 31. Bg3 {[%clk 0:00:25]}  h5 {[%clk 0:00:43]} 32. Rxf7 {[%clk 0:00:13]}  Qxf7 {[%clk 0:00:40]} 33. Rc1 {[%clk 0:00:14]}  Rc8 {[%clk 0:00:40]} 34. Qd1 {[%clk 0:00:13]}  Ne7 {[%clk 0:00:34]} 35. Rxc8 {[%clk 0:00:13]}  Nxc8 {[%clk 0:00:35]} 36. Bc4 {[%clk 0:00:13]}  Bb7 {[%clk 0:00:20]} 37. Bb5 {[%clk 0:00:14]}  h4 {[%clk 0:00:20]} 38. Be1 {[%clk 0:00:13]}  Kg7 {[%clk 0:00:20]} 39. Nc4 {[%clk 0:00:13]}  Qc7 {[%clk 0:00:21]} 40. b3 {[%clk 0:00:13]}  Na7 {[%clk 0:00:21]} 41. Qh5 {[%clk 0:00:12]}  Nxb5 {[%clk 0:00:20]} 42. axb5 {[%clk 0:00:13]}  Bc8 {[%clk 0:00:21]} 43. Qe8 {[%clk 0:00:13]}  Bd7 {[%clk 0:00:18]} 44. Qe7+ {[%clk 0:00:14]}  Nf7 {[%clk 0:00:17]} 45. b6 {[%clk 0:00:14]}  Qb7 {[%clk 0:00:17]} 46. Qxf7+ {[%clk 0:00:14]}  Kxf7 {[%clk 0:00:17]} 47. Nxd6+ {[%clk 0:00:15]}  Ke7 {[%clk 0:00:17]} 48. Nxb7 {[%clk 0:00:16]}  a4 {[%clk 0:00:17]} 49. Bxb4+ {[%clk 0:00:16]}  Ke8 {[%clk 0:00:17]} 50. bxa4 {[%clk 0:00:16]}  Bxa4 {[%clk 0:00:18]} 51. Nc5 {[%clk 0:00:16]}  Kd8 {[%clk 0:00:16]} 52. Nxa4 {[%clk 0:00:13]} 1-0


[Site "https://www.chess.com"]

[Event "Titled Tuesday Blitz February 15 Late 2022"]
[White "Yang, Kaiqi"]
[Black "Ozdemir, Serhan Berat"]
[WhiteFideId "8604398"]
[BlackFideId "6374611"]
[WhiteElo "2373"]
[BlackElo "1920"]
[Result "0-1"]
[Round "02"]
[TimeControl "180+1"]
[Date "2022.02.16"]
[WhiteClock "0:00:02"]
[BlackClock "0:00:05"]

1. c4 {[%clk 0:03:00]}  Nf6 {[%clk 0:02:53]} 2. Nc3 {[%clk 0:03:00]}  g6 {[%clk 0:02:30]} 3. e4 {[%clk 0:02:59]}  d6 {[%clk 0:02:30]} 4. d4 {[%clk 0:02:59]}  Bg7 {[%clk 0:02:30]} 5. Be2 {[%clk 0:02:59]}  O-O {[%clk 0:02:31]} 6. Bg5 {[%clk 0:03:00]}  c5 {[%clk 0:02:30]} 7. d5 {[%clk 0:03:00]}  e6 {[%clk 0:02:27]} 8. Qd2 {[%clk 0:03:00]}  exd5 {[%clk 0:02:25]} 9. exd5 {[%clk 0:03:01]}  a6 {[%clk 0:02:21]} 10. a4 {[%clk 0:02:46]}  Nbd7 {[%clk 0:02:18]} 11. Nf3 {[%clk 0:02:44]}  Re8 {[%clk 0:02:15]} 12. O-O {[%clk 0:02:44]}  Qc7 {[%clk 0:02:06]} 13. h3 {[%clk 0:02:43]}  Ne4 {[%clk 0:01:52]} 14. Nxe4 {[%clk 0:02:42]}  Rxe4 {[%clk 0:01:53]} 15. Bd3 {[%clk 0:02:41]}  Re8 {[%clk 0:01:51]} 16. Rfe1 {[%clk 0:02:25]}  Ne5 {[%clk 0:01:47]} 17. Nxe5 {[%clk 0:02:23]}  Rxe5 {[%clk 0:01:48]} 18. Bh6 {[%clk 0:02:05]}  Bxh6 {[%clk 0:00:57]} 19. Qxh6 {[%clk 0:02:03]}  Qe7 {[%clk 0:00:57]} 20. Qd2 {[%clk 0:01:49]}  Bd7 {[%clk 0:00:51]} 21. Rxe5 {[%clk 0:01:48]}  Qxe5 {[%clk 0:00:52]} 22. Re1 {[%clk 0:01:48]}  Qd4 {[%clk 0:00:51]} 23. b3 {[%clk 0:01:16]}  b5 {[%clk 0:00:47]} 24. axb5 {[%clk 0:01:05]}  axb5 {[%clk 0:00:46]} 25. Qe3 {[%clk 0:01:00]}  Qxe3 {[%clk 0:00:39]} 26. Rxe3 {[%clk 0:01:01]}  bxc4 {[%clk 0:00:38]} 27. Bxc4 {[%clk 0:01:02]}  Kf8 {[%clk 0:00:35]} 28. h4 {[%clk 0:00:52]}  h5 {[%clk 0:00:32]} 29. Kh2 {[%clk 0:00:50]}  Rb8 {[%clk 0:00:30]} 30. Kg3 {[%clk 0:00:49]}  Rb4 {[%clk 0:00:29]} 31. Kf4 {[%clk 0:00:21]}  Bb5 {[%clk 0:00:28]} 32. Rc3 {[%clk 0:00:20]}  Bxc4 {[%clk 0:00:26]} 33. bxc4 {[%clk 0:00:21]}  Kg7 {[%clk 0:00:22]} 34. f3 {[%clk 0:00:21]}  Rb1 {[%clk 0:00:16]} 35. g3 {[%clk 0:00:17]}  Kf6 {[%clk 0:00:16]} 36. Rc2 {[%clk 0:00:17]}  Rd1 {[%clk 0:00:15]} 37. Rc3 {[%clk 0:00:15]}  Rd4+ {[%clk 0:00:15]} 38. Ke3 {[%clk 0:00:15]}  Ke5 {[%clk 0:00:14]} 39. Rc1 {[%clk 0:00:15]}  f6 {[%clk 0:00:10]} 40. Rc2 {[%clk 0:00:15]}  g5 {[%clk 0:00:10]} 41. hxg5 {[%clk 0:00:14]}  fxg5 {[%clk 0:00:11]} 42. Re2 {[%clk 0:00:12]}  Kf5 {[%clk 0:00:10]} 43. Rc2 {[%clk 0:00:12]}  h4 {[%clk 0:00:10]} 44. gxh4 {[%clk 0:00:12]}  gxh4 {[%clk 0:00:11]} 45. Rc1 {[%clk 0:00:11]}  Kg5 {[%clk 0:00:09]} 46. Rg1+ {[%clk 0:00:11]}  Kf5 {[%clk 0:00:09]} 47. Rc1 {[%clk 0:00:10]}  h3 {[%clk 0:00:07]} 48. Rh1 {[%clk 0:00:10]}  Rh4 {[%clk 0:00:06]} 49. Rh2 {[%clk 0:00:09]}  Rxc4 {[%clk 0:00:03]} 50. Rxh3 {[%clk 0:00:08]}  Rc3+ {[%clk 0:00:04]} 51. Ke2 {[%clk 0:00:09]}  Ke5 {[%clk 0:00:04]} 52. Rh5+ {[%clk 0:00:09]}  Kd4 {[%clk 0:00:04]} 53. Rf5 {[%clk 0:00:08]}  Rc2+ {[%clk 0:00:04]} 54. Kd1 {[%clk 0:00:08]}  Rf2 {[%clk 0:00:03]} 55. Ke1 {[%clk 0:00:08]}  Rh2 {[%clk 0:00:03]} 56. Kd1 {[%clk 0:00:05]}  c4 {[%clk 0:00:03]} 57. Rf4+ {[%clk 0:00:04]}  Kd3 {[%clk 0:00:04]} 58. Kc1 {[%clk 0:00:03]}  c3 {[%clk 0:00:04]} 59. Kb1 {[%clk 0:00:02]}  Rh1+ {[%clk 0:00:05]} 60. Ka2 {[%clk 0:00:02]}  c2 {[%clk 0:00:05]} 0-1


[Site "https://www.chess.com"]